{"text_format":"1","workbook":"xlsx","n_sheets":1,"sheets":["Dati x impresa"],"not_rendered":{"charts":0,"images":0,"macros":1,"external_links":0,"defined_names":1,"comments":1,"pivot_tables":0},"unopened":[],"bounds":{"document_bytes":16777216,"sheet_cells":100000,"rows_first":2000,"rows_last":500,"rows_between":2000,"halvings":0,"cell_chars":16384,"cell_head_chars":4096},"cells_cut":0,"cells_raw":0,"read":"whole","date_system":"1900"}

{"sheet":"Dati x impresa","index":0,"n_rows":163,"n_cols":11,"rows_kept":163,"cut":false,"hidden":false,"merged":[[156,6,156,10],[1,2,1,10],[160,0,160,7],[161,0,161,7],[162,0,162,7],[159,0,159,7],[158,0,158,7],[153,6,153,10],[2,0,2,1],[2,2,2,5],[2,6,2,9],[3,1,4,1],[3,0,4,0]]}
[]
[null,null,"Tavola 1 - Reclami inviati dai consumatori alle imprese nel periodo: anno 2022"]
["Click sul pulsante in testa a ciascuna colonna per ordinare i dati in base ai corrispondenti valori.                  \nClick su \"Reset\" per tornare all'ordine alfabetico",null,"Numero reclami",null,null,null," Numero reclami per milione di premi (2) ",null,null,null,"Numero reclami/\n10.000 contratti\n(Tot.Vita e Danni)"]
["Tipologia imprese:\n- Italiane\n- Estere (1)","Denominazione impresa"]
[null,null,"Totale vita e danni","Rami Vita","Rami Danni \n(escl rc auto)","Rc auto",{"$f":"\"Totale vita e danni\" & CHAR(10) &\n\"Media:\" & CHAR(10) &\n\" It: \" &  TEXT(G155,\"#0,00\") & CHAR(10) &\n\" E: \" & TEXT(G156,\"#0,00\")","v":"Totale vita e danni\nMedia:\n It: 1,67\n E: 6,01"},{"$f":"\"Rami Vita\" & CHAR(10) & CHAR(10) &\n\"Media:\" & CHAR(10) &\n\" It: \" & TEXT(H155,\"#0,00\") & CHAR(10) &\n\" E: \" & TEXT(H156,\"#0,00\")","v":"Rami Vita\n\nMedia:\n It: 0,16\n E: 2,04"},{"$f":"\"Rami Danni\" & CHAR(10) &\n\"(escl rc auto)\" & CHAR(10) &\n\"Media:\" & CHAR(10) &\n\" It: \" &  TEXT(I155,\"#0,00\") & CHAR(10) &\n\" E: \" & TEXT(I156,\"#0,00\")","v":"Rami Danni\n(escl rc auto)\nMedia:\n It: 1,85\n E: 4,52"},{"$f":"\"Rc auto\" & CHAR(10) & CHAR(10) &\n\"Media:\" & CHAR(10) &\n\" It: \" & TEXT(J155,\"#0,00\") & CHAR(10) &\n\" E: \" & TEXT(J156,\"#0,00\")","v":"Rc auto\n\nMedia:\n It: 3,34\n E: 10,46"},{"$f":"\"Totale vita e danni\" & CHAR(10) &\n\"Media:\" & CHAR(10) &\n\" It: \" &  TEXT(K155,\"#0,00\") & CHAR(10) &\n\" E: \" & TEXT(K156,\"#0,00\")","v":"Totale vita e danni\nMedia:\n It: 4,57\n E: 5,93"}]
["Impresa vigilata","ALLEANZA ASSICURAZIONI S.P.A.",1415,1299,116,0,0.22,0.21,0.81,null,4.3600000000000003]
["Impresa vigilata","ALLIANZ DIRECT SOCIETA PER AZIONI",3789,0,501,3288,6.69,null,3.24,7.98,21.52]
["Impresa vigilata","ALLIANZ SOCIETA' PER AZIONI",4339,367,1763,2209,0.7,0.14000000000000001,0.84,1.41,3.43]
["Impresa vigilata","ALLIANZ VIVA S.P.A.",495,0,173,322,1.1299999999999999,null,0.57999999999999996,2.2999999999999998,4.24]
["Impresa vigilata","AMTRUST ASSICURAZIONI S.P.A.",81,0,81,0,0.31,null,0.31,null,3.45]
["Impresa vigilata","ARCA ASSICURAZIONI S.P.A.",514,0,366,148,2.09,null,1.75,4.13,4.87]
["Impresa vigilata","ARCA VITA S.P.A.",150,150,0,0,0.08,0.08,null,null,3.03]
["Impresa vigilata","ARGOGLOBAL ASSICURAZIONI S.P.A.",14,0,14,0,28.37,null,28.37,null,2.58]
["Impresa vigilata","ASSICURATRICE MILANESE SPA - COMPAGNIA DI ASSICURAZIONI",105,0,76,29,1.37,null,1.17,2.52,1.75]
["Impresa vigilata","ASSICURATRICE VAL PIAVE S.P.A.",22,0,7,15,0.59,null,0.36,0.85,1.93]
["Impresa vigilata","ASSICURAZIONI GENERALI SOCIETA' PER AZIONI",8,0,8,0,0,0,0.01,0,1.6]
["Impresa vigilata","ASSICURAZIONI RISCHI AGRICOLI VMG 1857 S.P.A.",1,0,1,0,0.01,null,0.01,null,"N.A.(4)"]
["Impresa vigilata","ASSIMOCO S.P.A. COMPAGNIA DI ASSICURAZIONI E RIASSICURAZIONI - MOVIMENTO COOPERATIVO",139,null,53,86,0.44,null,0.24,0.94,1.21]
["Impresa vigilata","ASSIMOCO VITA S.P.A. COMPAGNIA DI ASSICURAZIONE SULLA VITA",19,19,null,null,0.03,0.03,null,null,0.48]
["Impresa vigilata","ATHORA ITALIA S.P.A. (già Amissima Vita S.p.A.)",24,24,0,0,0.03,0.03,null,null,1.26]
["Impresa vigilata","AXA ASSICURAZIONI S.P.A.",2014,136,510,1368,0.82,0.23,0.44,2.02,3.59]
["Impresa vigilata","AXA MPS ASSICURAZIONI DANNI SOCIETA' PER AZIONI",280,0,177,103,1.77,null,1.39,3.33,1.28]
["Impresa vigilata","AXA MPS ASSICURAZIONI VITA SOCIETA' PER AZIONI",438,438,0,0,0.23,0.23,null,null,3.44]
["Impresa vigilata","BANCO BPM ASSICURAZIONI S.P.A (già Bipiemme Assicurazioni S.p.A.)",87,0,74,13,2.97,null,2.69,7.3,3.51]
["Impresa vigilata","BANCO BPM VITA S.P.A. (già Bipiemme Vita S.p.A.)",131,128,3,0,0.16,0.16,0.66,null,4.63]
["Impresa vigilata","BCC ASSICURAZIONI S.P.A.",68,0,48,20,1.22,null,0.96,3.5,2.5499999999999998]
["Impresa vigilata","BCC VITA S.P.A. COMPAGNIA DI ASSICURAZIONI VITA",62,62,0,0,0.11,0.11,null,null,2.34]
["Impresa vigilata","BENE ASSICURAZIONI S.P.A. SOCIETA BENEFIT",271,0,59,212,1.59,null,0.73,2.36,3.48]
["Impresa vigilata","BERKSHIRE HATHAWAY INTERNATIONAL INSURANCE LIMITED",10,0,10,0,0.31,null,0.31,null,5.44]
["Impresa vigilata","BIM VITA S.P.A.",2,2,0,0,0.06,0.06,null,null,4.04]
["Impresa vigilata","BNP PARIBAS CARDIF VITA COMPAGNIA DI ASSICURAZIONE E RIASSICURAZIONE S.P.A.",658,630,28,0,0.19,0.18,"N.A.(4)",null,8.91]
["Impresa vigilata","CF ASSICURAZIONI S.P.A. - COMPAGNIA DI ASSICURAZIONE PER IL CREDITO E LA FAMIGLIA",10,0,10,0,0.23,null,0.23,null,0.49]
["Impresa vigilata","CF LIFE COMPAGNIA DI ASSICURAZIONI VITA S.P.A.",3,3,0,0,0.1,0.1,null,null,0.34]
["Impresa vigilata","CNP UNICREDIT VITA S.P.A.",458,458,0,0,0.14000000000000001,0.14000000000000001,null,null,5.0599999999999996]
["Impresa vigilata","CNP VITA ASSICURA S.P.A.",142,142,0,0,0.05,0.05,null,null,5.18]
["Impresa vigilata","CNP VITA ASSICURAZIONE S.P.A.",59,59,0,0,0.04,0.04,null,null,0.44]
["Impresa vigilata","COMPAGNIA ASSICURATRICE LINEAR S.P.A.",1240,0,17,1223,6.44,null,0.32,8.73,17.8]
["Impresa vigilata","COMPAGNIA ITALIANA DI PREVIDENZA, ASSICURAZIONI E RIASSICURAZIONI S.P.A.",1288,393,367,528,0.78,0.45,0.74,1.81,5.15]
["Impresa vigilata","CREDEMASSICURAZIONI S.P.A.",154,0,154,0,2.97,null,2.97,null,5.28]
["Impresa vigilata","CREDEMVITA S.P.A.",78,78,0,0,0.08,0.08,null,null,3.76]
["Impresa vigilata","CREDIT AGRICOLE ASSICURAZIONI S.P.A.",260,0,168,92,2.08,null,1.57,5.17,4.08]
["Impresa vigilata","CREDIT AGRICOLE VITA S.P.A.",48,48,null,null,0.01,0.01,null,null,0.98]
["Impresa vigilata","D.A.S. DIFESA AUTOMOBILISTICA SINISTRI - S.P.A. DI ASSICURAZIONE",71,0,71,0,1.23,null,1.23,null,2.2000000000000002]
["Impresa vigilata","EUROP ASSISTANCE ITALIA S.P.A.",1970,0,1970,0,8.2200000000000006,null,8.2200000000000006,null,3.68]
["Impresa vigilata","EUROVITA S.P.A.",260,260,0,0,0.22,0.22,null,null,7.72]
["Impresa vigilata","FIDEURAM VITA S.P.A.",208,208,0,0,0.06,0.06,null,null,5.23]
["Impresa vigilata","GENERALI ITALIA S.P.A.",4815,733,2141,1941,0.34,0.09,0.52,1.57,2.79]
["Impresa vigilata","GENERTEL S.P.A.",3428,0,680,2748,6.57,null,2.33,11.98,28.6]
["Impresa vigilata","GENERTELLIFE S.P.A.",799,799,0,0,0.31,0.31,null,null,13.8]
["Impresa vigilata","GLOBAL ASSISTANCE COMPAGNIA DI ASSICURAZIONI E RIASSICURAZIONI S.P.A.",34,0,34,0,1.74,null,1.74,null,1.47]
["Impresa vigilata","GROUPAMA ASSICURAZIONI SOCIETA' PER AZIONI",1384,17,521,846,1.1599999999999999,7.0000000000000007E-2,0.99,2.09,5.89]
["Impresa vigilata","HDI ASSICURAZIONI S.P.A.",680,65,186,429,0.46,0.06,0.92,1.74,4.6399999999999997]
["Impresa vigilata","HDI ITALIA S.P.A.",440,0,183,257,1.79,null,1.38,2.25,4.9000000000000004]
["Impresa vigilata","HELVETIA COMPAGNIA SVIZZERA D'ASSICURAZIONI S.A.",369,null,161,208,0.83,null,0.52,1.59,4.21]
["Impresa vigilata","HELVETIA ITALIA ASSICURAZIONI S.P.A.",95,0,46,49,0.77,null,0.44,2.39,1.52]
["Impresa vigilata","HELVETIA VITA COMPAGNIA ITALO-SVIZZERA DI ASSICURAZIONI SULLA VITA S.P.A.",50,50,0,0,0.13,0.13,null,null,2.81]
["Impresa vigilata","IMA ITALIA ASSISTANCE S.P.A.",23,null,23,0,1.31,null,1.31,null,0.21]
["Impresa vigilata","INCONTRA ASSICURAZIONI SPA",203,0,203,0,1.31,null,1.31,0,3.58]
["Impresa vigilata","INTESA SANPAOLO ASSICURA S.P.A.",2078,0,1791,287,2.27,null,2.13,3.86,5.19]
["Impresa vigilata","INTESA SANPAOLO RBM SALUTE S.P.A.",4106,0,4106,0,7.88,null,7.88,null,12.84]
["Impresa vigilata","INTESA SANPAOLO VITA S.P.A.",2219,2217,2,0,0.22,0.22,4.4800000000000004,null,5.9]
["Impresa vigilata","ITAS - ISTITUTO TRENTINO-ALTO ADIGE PER ASSICURAZIONI SOCIETA' MUTUA DI ASSICURAZIONI",540,0,238,302,0.72,null,0.46,1.3,3.86]
["Impresa vigilata","ITAS VITA S.P.A.",44,44,0,0,0.12,0.12,null,null,1.37]
["Impresa vigilata","LE ASSICURAZIONI DI ROMA - MUTUA ASSICURATRICE ROMANA",30,0,17,13,0.5,null,0.41,0.72,1.88]
["Impresa vigilata","MEDIOLANUM ASSICURAZIONI S.P.A.",92,0,92,0,0.76,null,0.76,null,2.62]
["Impresa vigilata","MEDIOLANUM VITA S.P.A",400,400,0,0,0.09,0.09,null,null,5.33]
["Impresa vigilata","NET INSURANCE LIFE S.P.A.",1,1,0,0,0.01,0.01,null,null,0.02]
["Impresa vigilata","NET INSURANCE S.P.A.",15,0,15,0,0.16,null,0.16,null,0.3]
["Impresa vigilata","NOBIS COMPAGNIA DI ASSICURAZIONI S.P.A.",544,0,274,270,1.49,null,0.95,3.62,1.75]
["Impresa vigilata","NOBIS VITA S.P.A.",4,4,0,0,0.05,0.05,null,null,2.4500000000000002]
["Impresa vigilata","POSTE ASSICURA S.P.A.",2624,0,2624,0,6.69,null,6.69,null,4.53]
["Impresa vigilata","POSTE VITA S.P.A.",2765,2765,0,0,0.16,0.16,null,null,3.68]
["Impresa vigilata","QUIXA ASSICURAZIONI S.P.A.",580,0,31,549,5.91,null,1.94,6.67,13.86]
["Impresa vigilata","REVO INSURANCE S.P.A. (già Elba S.p.A.)",11,0,11,0,0.08,null,0.08,null,0.92]
["Impresa vigilata","S2C S.P.A. COMPAGNIA DI ASSICURAZIONI DI CREDITI E CAUZIONI",2,null,2,0,0.05,null,0.05,null,1.19]
["Impresa vigilata","SACE BT S.P.A.",12,0,12,0,0.08,null,0.08,null,2.21]
["Impresa vigilata","SARA ASSICURAZIONI S.P.A. ASSICURATRICE UFFICIALE DELL'AUTOMOBILE CLUB D'ITALIA",997,0,355,642,1.56,null,1.1499999999999999,1.93,2.85]
["Impresa vigilata","SARA VITA S.P.A.",7,7,0,0,0.03,0.03,null,null,1.4]
["Impresa vigilata","SCHWEIZERISCHE HAGEL-VERSICHERUNGS-GESELLSHAFT - SOCIETA' SVIZZERA DI",0,0,0,0,0,null,0]
["Impresa vigilata","SIAT SOCIETA' ITALIANA ASSICURAZIONI E RIASSICURAZIONI PER AZIONI",15,0,15,0,0.1,null,0.1,0,12.2]
["Impresa vigilata","SLP - ASSICURAZIONI SPESE LEGALI PERITALI E RISCHI ACCESSORI S.P.A.",3,0,3,0,1.8,null,1.8,null,0.84]
["Impresa vigilata","SOCIETA' CATTOLICA DI ASSICURAZIONE SOCIETA' PER AZIONI",2926,267,819,1840,1.38,0.64,0.78,2.84,5.96]
["Impresa vigilata","SOCIETA' REALE MUTUA DI ASSICURAZIONI",2063,52,1238,773,0.81,0.06,0.96,1.77,3.63]
["Impresa vigilata","TUA ASSICURAZIONI SOCIETA' PER AZIONI",765,0,163,602,2.73,null,1.1100000000000001,4.5,9.7100000000000009]
["Impresa vigilata","TUTELA LEGALE S.P.A.",5,0,5,0,0.32,null,0.32,null,0.35]
["Impresa vigilata","UCA - ASSICURAZIONE SPESE LEGALI E PERITALI S.P.A.",10,0,10,0,0.23,null,0.23,null,0.19]
["Impresa vigilata","UNICREDIT ALLIANZ ASSICURAZIONI S.P.A.",520,0,402,118,2.34,null,2.0299999999999998,4.93,2.9]
["Impresa vigilata","UNICREDIT ALLIANZ VITA S.P.A.",425,425,0,0,0.09,0.09,null,null,4.1100000000000003]
["Impresa vigilata","UNIPOLSAI ASSICURAZIONI S.P.A.",12219,409,4551,7259,1.19,0.12,1.1100000000000001,2.62,3.48]
["Impresa vigilata","UNISALUTE S.P.A.",3004,0,3004,0,5.23,null,5.23,null,4.04]
["Impresa vigilata","VERA ASSICURAZIONI S.P.A.",259,0,249,10,2.06,null,2.0499999999999998,2.33,3.78]
["Impresa vigilata","VERA PROTEZIONE S.P.A.",140,140,0,0,1.23,1.23,null,null,3.4]
["Impresa vigilata","VERA VITA S.P.A.",123,123,0,0,0.13,0.13,0,null,3.91]
["Impresa vigilata","VERTI ASSICURAZIONI S.P.A.",1439,0,233,1206,7.21,null,3.51,9.0399999999999991,15.89]
["Impresa vigilata","VITTORIA ASSICURAZIONI S.P.A.",2541,81,787,1673,1.51,0.23,1.24,2.42,4.9000000000000004]
["Impresa vigilata","ZURICH INSURANCE COMPANY LTD",636,null,165,471,5.17,null,2.89,7.16,14.59]
["Impresa vigilata","ZURICH INVESTMENTS LIFE S.P.A.",251,251,null,null,0.16,0.16,null,null,2.7]
["Impresa estera","ADMIRAL EUROPE COMPAÑIA DE SEGUROS S.A.",1396,0,134,1262,5.26,null,1.93,6.45,8.51]
["Impresa estera","ADRIATIC OSIGURANJE D.D.",1571,0,5,1566,23.41,null,1.42,24.62,"NA(3)"]
["Impresa estera","AIG EUROPE S.A.",333,0,295,38,0.6,null,0.54,3.66,0.5]
["Impresa estera","AIG EUROPE S.A. (LPS)",112,0,112,0,"NA(3)",null,"NA(3)",null,"N.A.(4)"]
["Impresa estera","AIOI NISSAY DOWA INSURANCE COMPANY OF EUROPE SE",105,0,51,54,1.0900000000000001,null,0.56000000000000005,9.11,6.92]
["Impresa estera","ALLIANZ GLOBAL LIFE DAC",24,24,0,0,0.04,0.04,null,null,2.39]
["Impresa estera","AMTRUST INTERNATIONAL UNDERWRITERS DAC",410,0,409,1,9.73,null,9.7100000000000009,null,26.42]
["Impresa estera","ARAG SE RAPPRESENTANZA GENERALE E DIREZIONE PER L'ITALIA",59,0,59,0,1.4,null,1.4,null,0.99]
["Impresa estera","ASSURANT EUROPE INSURANCE NV",90,0,90,0,7.56,null,7.56,null,0.55000000000000004]
["Impresa estera","AWP P&C S.A.",416,0,416,0,8.51,null,8.51,null,4.29]
["Impresa estera","AWP P&C S.A. (LPS)",98,0,98,0,42.46,null,42.46,null,0.14000000000000001]
["Impresa estera","AXA FRANCE IARD",9,0,9,0,0.25,null,0.25,null,0.38]
["Impresa estera","AXA MPS FINANCIAL DAC",44,44,0,0,0.06,0.06,null,null,1.73]
["Impresa estera","BUPA GLOBAL DAC",59,0,59,0,0.02,null,0.02,null,"N.A.(4)"]
["Impresa estera","CACI LIFE DAC",193,193,0,0,1.52,1.52,null,null,6.12]
["Impresa estera","CACI LIFE DAC (LPS)",336,336,0,0,4.8499999999999996,4.8499999999999996,null,null,6.1]
["Impresa estera","CACI NON LIFE DAC",90,0,90,0,2.5299999999999998,null,2.5299999999999998,null,3.16]
["Impresa estera","CACI NON LIFE DAC (LPS)",230,0,230,0,3.14,null,3.14,null,4.22]
["Impresa estera","CARDIF ASSURANCE VIE S.A.",657,657,0,0,2.76,2.76,null,null,3.65]
["Impresa estera","CARDIF ASSURANCES RISQUES DIVERS S.A.",1052,0,1052,0,7.38,null,7.38,null,5.26]
["Impresa estera","CHUBB EUROPEAN GROUP SE",183,0,182,1,0.61,null,0.61,0.9,0.26]
["Impresa estera","CNP ASSURANCES S.A.",30,11,19,0,0.73,0.36,1.76,null,2.61]
["Impresa estera","CNP SANTANDER INSURANCE EUROPE DESIGNATED ACTIVITY COMPANY",24,0,24,0,1.1000000000000001,null,1.1000000000000001,null,1.08]
["Impresa estera","CNP SANTANDER INSURANCE LIFE DESIGNATED ACTIVITY COMPANY",21,21,0,0,0.94,0.94,null,null,1.08]
["Impresa estera","COLLINSON INSURANCE EUROPE LTD",308,0,308,0,24.61,null,24.61,null,13.19]
["Impresa estera","DARAG DEUTSCHLAND AG",35,0,10,25,3.16,null,0.9,null,39.630000000000003]
["Impresa estera","ERGO REISEVERSICHERUNG AG",403,0,403,0,27.51,null,27.51,null,1.27]
["Impresa estera","EURO INSURANCES DAC",16,0,0,16,6.24,null,0,null,1.08]
["Impresa estera","EUROHERC OSIGURANJE D.D.",267,0,0,267,15.65,null,0,15.68,"NA(3)"]
["Impresa estera","EUROP ASSISTANCE SA",381,0,381,0,"NA(3)",null,"NA(3)",null,13.97]
["Impresa estera","FWU LIFE INSURANCE LUX S.A.",78,78,0,0,0.62,0.62,null,null,8.09]
["Impresa estera","GAMALIFE COMPANHIA DE SEGUROS DE VIDA, SA",53,53,null,null,1.05,1.05,null,null,3.12]
["Impresa estera","GREAT LAKES INSURANCE SE",1998,0,138,1860,5.49,null,1.05,7.98,18.07]
["Impresa estera","GREENVAL INSURANCE DAC",45,0,0,45,1.32,null,0,1.63,1.47]
["Impresa estera","HANSARD EUROPE DAC (run off)",45,45,0,0]
["Impresa estera","INSURANCE JSC DALLBOGG: LIFE AND HEALTH",996,0,0,996,44.32,null,0,47.15,"NA(3)"]
["Impresa estera","INTER PARTNER ASSISTANCE SA",187,0,187,0,4.3,null,4.3,null,0.53]
["Impresa estera","INTESA SANPAOLO LIFE DESIGNATED ACTIVITY COMPANY",576,576,0,0,0.2,0.2,null,null,8.9499999999999993]
["Impresa estera","IPTIQ EMEA P&C SA",1162,0,123,1039,4.6900000000000004,null,1.59,6.1,6.73]
["Impresa estera","IPTIQ EMEA P&C SA (LPS)",1092,0,85,1007,9.3000000000000007,null,2.61,11.86,9.91]
["Impresa estera","LLOYD'S INSURANCE COMPANY SA",129,0,129,0,0.42,null,0.42,null,3.63]
["Impresa estera","MAPFRE ASISTENCIA, COMPA?IA INTERNATIONAL DE SEGUROS Y REASEGUROS, S.A.",18,0,18,0,0.91,null,0.91,null,3.49]
["Impresa estera","MEDIOLANUM INTERNATIONAL LIFE DAC",125,125,0,0,2.62,2.62,null,null,16.95]
["Impresa estera","METLIFE EUROPE DESIGNATED ACTIVITY COMPANY",1244,630,614,0,5.41,4.4800000000000004,6.89,null,9.42]
["Impresa estera","METLIFE EUROPE INSURANCE DESIGNATED ACTIVITY COMPANY",17,0,17,0,0.94,null,0.94,null,2.08]
["Impresa estera","MMA IARD SA",49,0,49,0,0.23,null,0.23,null,0.86]
["Impresa estera","MONUMENT ASSURANCE LUXEMBOURG S.A.",11,11,0,0,1.54,1.54,null,null,5.52]
["Impresa estera","NOVIS INSURANCE COMPANY, NOVIS VERSICHERUNGSGESELLSCHAFT, NOVIS COMPAGNIA DI ASSICURAZIONI, NOVIS POIST'OVNA A.S.",318,318,0,0,11.22,11.22,null,null,"NA(3)"]
["Impresa estera","SOGECAP",16,16,0,0,0.3,0.3,null,null,0.87]
["Impresa estera","SOGESSUR S.A.",568,0,43,525,4.68,null,1.04,6.56,7.88]
["Impresa estera","TRAVELJIGSAW INSURANCE LTD",22,0,22,0,0,null,0,null,"N.A.(4)"]
["Impresa estera","VERA FINANCIAL DESIGNATED ACTIVITY  COMPANY",24,24,0,0,0.05,0.05,null,null,3.46]
["Impresa estera","WAKAM",317,0,295,22,2.94,null,2.92,3.28,2.33]
["Impresa estera","ZURICH INSURANCE PLC",814,null,260,554,0.6,null,0.27,1.44,3.93]
[]
[]
[null,null,"Totale vita e danni","Rami Vita","Rami Danni \n(escl rc auto)","Rc auto","Valori medi"]
[null,"Totale Imprese Italiane ",{"$f":"IFERROR(SUMIF(A6:A151, \"Impresa vigilata\", C6:C151), 0)","v":78120},{"$f":"IFERROR(SUMIF(A6:A151, \"Impresa vigilata\", D6:D151), 0)","v":13754},{"$f":"IFERROR(SUMIF(A6:A151, \"Impresa vigilata\", E6:E151), 0)","v":32217},{"$f":"IFERROR(SUMIF(A6:A151, \"Impresa vigilata\", F6:F151), 0)","v":32149},{"$f":"IFERROR(AVERAGEIF(A6:A151, \"Impresa vigilata\", G6:G151), 0)","v":1.6671739130434775},{"$f":"IFERROR(AVERAGEIF(A6:A151, \"Impresa vigilata\", H6:H151), 0)","v":0.16121951219512196},{"$f":"IFERROR(AVERAGEIF(A6:A151, \"Impresa vigilata\", I6:I151), 0)","v":1.8513636363636354},{"$f":"IFERROR(AVERAGEIF(A6:A151, \"Impresa vigilata\", J6:J151), 0)","v":3.3417500000000011},{"$f":"IFERROR(AVERAGEIF(A6:A151, \"Impresa vigilata\", K6:K151), 0)","v":4.5717777777777755}]
[null,"Totale Imprese Estere (UE) ",{"$f":"IFERROR(SUMIF(A6:A151, \"Impresa estera\", C6:C151), 0)","v":18856},{"$f":"IFERROR(SUMIF(A6:A151, \"Impresa estera\", D6:D151), 0)","v":3162},{"$f":"IFERROR(SUMIF(A6:A151, \"Impresa estera\", E6:E151), 0)","v":6416},{"$f":"IFERROR(SUMIF(A6:A151, \"Impresa estera\", F6:F151), 0)","v":9278},{"$f":"IFERROR(AVERAGEIF(A6:A151, \"Impresa estera\", G6:G151), 0)","v":6.0052941176470629},{"$f":"IFERROR(AVERAGEIF(A6:A151, \"Impresa estera\", H6:H151), 0)","v":2.0381249999999995},{"$f":"IFERROR(AVERAGEIF(A6:A151, \"Impresa estera\", I6:I151), 0)","v":4.5154054054054056},{"$f":"IFERROR(AVERAGEIF(A6:A151, \"Impresa estera\", J6:J151), 0)","v":10.458571428571428},{"$f":"IFERROR(AVERAGEIF(A6:A151, \"Impresa estera\", K6:K151), 0)","v":5.9302173913043479}]
[null,"Totale complessivo",{"$f":"C155+C156","v":96976},{"$f":"D155+D156","v":16916},38633,41427]
[]
["(1) - Imprese con sede legale in un Paese UE, operanti in Italia in regime di stabilimento o di libera prestazione dei servizi (ossia senza una sede stabile in Italia). Sono tenute alla comunicazione le sole imprese che ricevono nell'anno più di 20 reclami. "]
["(2) - Fonte premi: segnalazioni Solvency II/PTRIM, per le imprese in LPS sono quelli riportati nel documento tecnico all. 2 Reg. 24/2008. \n"]
["(3) - NA: Outlier non inserito nella media - per visualizzare il valore fare click sulla cella"]
["(4) - NA: dato non inserito nella media in quanto non significativo rispetto al valore dell'indicatore/condizionato da operazioni societarie infrannuali/ run off nel comparto"]
["Fonte: elaborazione prospetti informatici inviati dalle imprese all'IVASS ai sensi del Regolamento n. 24/2008 - segnalazioni Infostat al 14 aprile 2023."]